[Event "1st Serbian League 2022"]
[Site "Vrnjacka Banja"]
[Date "2022.09.28"]
[Round "9.19"]
[White "Predojevic, Borki"]
[Black "Sarana, Alexey"]
[Result "1/2-1/2"]
[ECO "B51"]
[WhiteElo "2584"]
[BlackElo "2662"]
[Annotator "TA"]
[PlyCount "35"]
[EventDate "2022.09.20"]
[EventType "team-tourn"]
[EventCountry "SRB"]
[SourceTitle "playchess.com"]
[Source "ChessBase"]
[SourceQuality "1"]
[TimeControl "40/5400+30:1800+30"]

{[%evp 9,35,21,17,23,26,8,12,24,23,26,20,24,38,29,20,21,52,23,23,23,23,28,28,26,27,14,6,9]} 1. e4 {[%emt 0:00:03]} c5 {[%emt 0:00:04]} 2. Nf3 {[%emt 0:00:05]} d6 {[%emt 0:00:04]} 3. Bb5+ {[%emt 0:00:05]} Nd7 {[%emt 0:00:05]} 4. O-O {[%emt 0:00:05]} a6 {[%emt 0:01:03]} 5. Bd3 {[%emt 0:00:12]} Ngf6 {[%emt 0:00:37]} 6. Re1 {[%emt 0:00:20] B51: Sicilian: Moscow Variation (3 Bb5+) without 3...Bd7.} e6 $1 {[%emt 0:00:10] The main line 6...e6 scores better than 6...b5.} 7. c3 {[%emt 0:00:09]} b5 {[%emt 0:00:17]} 8. Bc2 {[%emt 0:00:16]} Bb7 {[%emt 0:04:37]} 9. d4 {[%emt 0:00:31]} Be7 {[%emt 0:00:04]} 10. a4 {[%emt 0:01:42]} Qc7 {[%emt 0:03:19] [#]} 11. d5 $146 {[%emt 0:33:43]} ({Predecessor:} 11. axb5 axb5 12. Rxa8+ Bxa8 13. Qe2 Qb8 14. Nbd2 cxd4 15. cxd4 O-O 16. Nf1 Rc8 17. Ng3 {0-1 (40) Selbes,T (2255)-Cheparinov,I (2685) Ankara 2022}) 11... exd5 {[%emt 0:18:37]} 12. exd5 {[%emt 0:00:05]} Nb6 {[%emt 0:00:33]} 13. axb5 {[%emt 0:02:26]} (13. Qe2 {looks sharper.} Bxd5 14. Bg5 Bc4 15. Qe3) 13... axb5 {[%emt 0:01:08]} 14. Rxa8+ {[%emt 0:01:08]} Bxa8 {[%emt 0:00:02]} 15. Na3 {[%emt 0:00:15]} O-O {[%emt 0:13:26]} 16. Nxb5 {[%emt 0:05:43]} Qd7 {[%emt 0:00:11]} 17. Qe2 {[%emt 0:03:30] With the idea c4.} Nbxd5 {[%emt 0:08:18]} 18. c4 {[%emt 0:07:07] Weighted Error Value: White=0.05 (flawless) /Black=0.04 (flawless)} 1/2-1/2

[Event "1st Serbian League 2022"]
[Site "Vrnjacka Banja"]
[Date "2022.09.28"]
[Round "9.20"]
[White "Ivic, Velimir"]
[Black "Bogosavljevic, Boban"]
[Result "1-0"]
[ECO "B27"]
[WhiteElo "2553"]
[BlackElo "2533"]
[Annotator "TA"]
[PlyCount "61"]
[EventDate "2022.09.20"]
[EventType "team-tourn"]
[EventCountry "SRB"]
[SourceTitle "playchess.com"]
[Source "ChessBase"]
[SourceQuality "1"]
[TimeControl "40/5400+30:1800+30"]

{[%evp 9,61,21,14,14,14,13,40,38,39,14,13,0,0,0,0,-5,0,0,0,0,11,25,29,17,30,29,32,36,134,82,191,120,111,113,254,244,328,330,329,326,690,675,670,650,1075,1052,1069,1064,1064,826,1029,1022,29992,29993]} 1. e4 {[%emt 0:00:10][%cal Be2e4,Be4e5,Be5e6][%mdl 32]} c5 {[%emt 0:00:10]} 2. Nf3 {[%emt 0:00:06]} g6 {[%emt 0:00:07]} 3. c3 {[%emt 0:00:22]} d5 {[%emt 0:00:09]} 4. e5 {[%emt 0:00:09]} Bg4 {[%emt 0:00:13]} 5. Bb5+ {[%emt 0:00:20]} Nc6 {[%emt 0:00:06]} 6. Bxc6+ {[%emt 0:00:41] B27: Sicilian: 2 Nf3, unusual Black 2nd moves.} bxc6 {[%emt 0:00:06]} 7. O-O {[%emt 0:00:09]} Bg7 {[%emt 0:02:17]} 8. Re1 {[%emt 0:03:28] [#] White is slightly better.} f6 $146 {[%emt 0:19:48]} ({Predecessor:} 8... Qc7 9. d4 cxd4 10. cxd4 c5 11. Nc3 e6 12. Nb5 Qb6 13. Nd6+ Kf8 14. Nxf7 Kxf7 {1-0 (46) Aung,T (2268)-Manukyan,S (2253) Chess.com INT 2021}) 9. e6 {[%emt 0:16:59]} Qd6 {[%emt 0:15:10]} 10. Qe2 {[%emt 0:00:18]} f5 {[%emt 0:00:23]} 11. d3 {[%emt 0:06:57]} Nf6 {[%emt 0:01:11]} 12. h3 {[%emt 0:10:29]} Bh5 {[%emt 0:01:15]} 13. Nbd2 {[%emt 0:02:24][%cal Bb1d2,Bd2b3,Bb3c5][%mdl 32]} O-O {[%emt 0:13:49]} 14. Qf1 {[%emt 0:06:13]} h6 {[%emt 0:13:12]} 15. Ne5 {[%emt 0:02:29]} f4 {[%emt 0:04:28]} (15... Qxe6 $2 16. Nxg6 $1 {[%mdl 512]} Qd7 17. Nxf8 (17. Rxe7 Qd6 $16) 17... Rxf8 18. f4 $18) 16. Nf7 {[%emt 0:03:19] Pair of Knights!} Qc7 {[%emt 0:01:15]} 17. Nb3 {[%emt 0:01:26]} g5 {[%emt 0:04:31]} 18. Nxc5 {[%emt 0:00:58]} f3 {[%emt 0:01:16] [#]} (18... Bxf7 $14 19. exf7+ Rxf7) 19. d4 {[%emt 0:16:42] White is more active.} (19. gxf3 $142 $1 {[%cal Oh3h4] Hoping for h4!} Bxf3 20. d4) 19... Ne8 {[%emt 0:05:13]} (19... fxg2 $16 20. Qxg2 Bxf7 21. exf7+ Rxf7) 20. Ne5 {[%emt 0:06:08]} (20. gxf3 $18 {[%cal Oh3h4] Threatens to win with h4!} Bxf7 21. exf7+ Rxf7 22. Qg2) 20... fxg2 $16 {[%emt 0:02:11]} 21. Qxg2 {[%emt 0:01:50]} Nd6 {[%emt 0:00:23] [#] A mistake that costs the game.} (21... Rf5 $16 {might work better.}) 22. h4 $1 $18 {[%emt 0:01:24][%cal Bh3h4,Bh4g5][%mdl 32]} Nf5 {[%emt 0:06:04]} 23. hxg5 {[%emt 0:03:43]} Bxe5 {[%emt 0:01:06]} 24. Rxe5 {[%emt 0:00:21]} ({But not} 24. dxe5 Kh8 25. Qh3 (25. gxh6 $2 Rg8 $19) 25... Bg6 26. gxh6 a5 $18) 24... Nh4 {[%emt 0:00:09]} (24... Bg6 25. Qh2 (25. gxh6 Nh4 $18) 25... h5) 25. Qh3 {[%emt 0:03:06]} Nf3+ {[%emt 0:00:07]} 26. Kg2 {[%emt 0:01:42]} Nxe5 {[%emt 0:06:46]} 27. Qxh5 {[%emt 0:00:22] And now f4 would win.} Nf3 {[%emt 0:01:02]} 28. Qg6+ {[%emt 0:00:48]} Kh8 {[%emt 0:00:02]} 29. Qxh6+ {[%emt 0:00:06]} Kg8 {[%emt 0:00:03]} 30. Be3 {[%emt 0:01:27] Threatening mate with Rh1.} Rf4 {[%emt 0:02:09]} 31. Rh1 {[%emt 0:01:26] Weighted Error Value: White=0.11 (very precise) /Black=0.67} 1-0

[Event "1st Serbian League 2022"]
[Site "Vrnjacka Banja"]
[Date "2022.09.28"]
[Round "9.21"]
[White "Vuckovic, Bojan"]
[Black "Nenezic, Marko"]
[Result "1-0"]
[ECO "B33"]
[WhiteElo "2559"]
[BlackElo "2528"]
[Annotator "TA"]
[PlyCount "133"]
[EventDate "2022.09.20"]
[EventType "team-tourn"]
[EventCountry "SRB"]
[SourceTitle "playchess.com"]
[Source "ChessBase"]
[SourceQuality "1"]
[TimeControl "40/5400+30:1800+30"]

{[%evp 13,133,35,53,24,34,29,37,27,22,39,40,30,30,34,38,39,41,34,43,35,45,38,46,34,39,24,31,37,43,29,43,36,43,28,31,24,31,27,41,20,47,39,55,46,35,18,35,25,35,38,34,17,14,19,18,24,75,81,152,143,123,122,117,114,439,439,435,409,645,649,650,623,650,640,603,481,643,631,629,518,729,755,580,359,359,359,359,364,312,39,39,41,43,51,242,85,2289,5591,4706,3933,4682,4170,9463,9105,7551,7551,4617,2156,29968,29965,29964,29965,6087,5716,29975,29976,29976,29977,29978,29978,29979,29978]} 1. e4 {[%emt 0:00:52]} c5 {[%emt 0:00:30]} 2. Nf3 {[%emt 0:00:13]} Nc6 {[%emt 0:00:30]} 3. d4 {[%emt 0:00:22]} cxd4 {[%emt 0:00:26]} 4. Nxd4 {[%emt 0:00:10]} Qb6 {[%emt 0:00:34]} 5. Nb3 {[%emt 0:01:41]} Nf6 {[%emt 0:00:28]} 6. Nc3 {[%emt 0:01:02]} e6 {[%emt 0:00:35]} 7. Bd3 {[%emt 0:02:27]} a6 {[%emt 0:00:45]} 8. f4 {[%emt 0:04:48] B33: Sicilian: Pelikan and Sveshnikov Variations.} Bb4 {[%emt 0:17:52] [#]} 9. Qe2 $146 {[%emt 0:10:41]} ({Predecessor:} 9. Qf3 O-O 10. Bd2 Qc7 11. a3 Be7 12. e5 Ne8 13. O-O d6 14. Qe4 g6 15. Rae1 b5 {½-½ (64) Munenga,D (2339)-Kigigha,B (2270) Chess.com INT 2021}) 9... d5 {[%emt 0:11:36]} 10. Bd2 {[%emt 0:27:20] White is slightly better.} dxe4 {[%emt 0:17:18]} 11. Nxe4 {[%emt 0:00:21]} Nxe4 {[%emt 0:00:13]} 12. Bxe4 {[%emt 0:00:21]} Bxd2+ $1 {[%emt 0:00:28]} 13. Qxd2 {[%emt 0:00:27]} O-O {[%emt 0:02:43]} 14. O-O-O {[%emt 0:01:10]} Rd8 {[%emt 0:02:38]} 15. Qc3 {[%emt 0:01:15]} Bd7 {[%emt 0:01:28]} 16. g3 {[%emt 0:08:47]} Rac8 {[%emt 0:06:15]} 17. Qc5 {[%emt 0:01:01]} Qc7 {[%emt 0:00:10]} 18. Rd2 {[%emt 0:06:22]} (18. Qh5 f5 19. Bxc6 Bxc6 20. Rxd8+ Qxd8 $11) 18... Be8 {[%emt 0:24:41]} 19. Rhd1 {[%emt 0:02:51]} Rxd2 {[%emt 0:00:38]} 20. Rxd2 {[%emt 0:00:12]} g6 {[%emt 0:00:09]} 21. Nd4 {[%emt 0:08:19]} Na5 {[%emt 0:04:48]} 22. Qxc7 {[%emt 0:01:17]} Rxc7 {[%emt 0:00:04]} 23. b3 {[%emt 0:01:15]} Kf8 {[%emt 0:00:35]} 24. Kb2 {[%emt 0:02:13]} Ke7 {[%emt 0:02:38]} 25. c4 {[%emt 0:00:58]} Nc6 {[%emt 0:00:15]} 26. Kc3 {[%emt 0:06:05]} f6 {[%emt 0:01:45]} 27. Bxc6 {[%emt 0:03:37]} Bxc6 $14 {[%emt 0:00:38][%mdl 4096] Endgame KRB-KRN} 28. Re2 {[%emt 0:00:52]} Bd7 {[%emt 0:01:05]} 29. g4 {[%emt 0:01:11]} Kf7 {[%emt 0:01:12]} 30. g5 {[%emt 0:00:57]} h6 {[%emt 0:00:25]} 31. gxf6 {[%emt 0:04:28]} Kxf6 {[%emt 0:00:10]} 32. b4 {[%emt 0:01:11]} g5 {[%emt 0:00:53]} 33. fxg5+ {[%emt 0:00:17]} hxg5 {[%emt 0:00:04]} 34. Rf2+ {[%emt 0:00:26]} Kg6 {[%emt 0:00:28]} (34... Ke7 $11) 35. Nf3 $1 $16 {[%emt 0:00:26] Threatens to win with Ne5+.} Bc6 {[%emt 0:00:50]} ({Black should try} 35... Kf6) 36. Ne5+ {[%emt 0:00:08]} Kg7 {[%emt 0:00:04]} 37. Kd4 {[%emt 0:00:31] Prevents Be4. White is more active.} Be8 {[%emt 0:00:28]} 38. c5 {[%emt 0:01:01]} Bc6 $2 {[%emt 0:01:35][%mdl 8192]} (38... Bb5 $16 39. Ke4 a5) 39. Nxc6 $18 {[%emt 0:01:34]} Rxc6 {[%emt 0:00:07] KR-KR} 40. a4 {[%emt 0:00:15][%cal Ba2a4,Ba4a5][%mdl 32]} Rc8 {[%emt 0:01:15]} (40... e5+ $142 41. Kd5 (41. Kxe5 a5 $18) 41... Rc8 42. Kxe5 a5) 41. a5 {[%emt 0:12:41]} Rd8+ {[%emt 0:02:31]} 42. Ke5 {[%emt 0:02:06]} Rd1 {[%emt 0:00:06]} 43. Kxe6 {[%emt 0:00:07] And now Rf7+ would win.} Re1+ {[%emt 0:00:07]} 44. Kd5 {[%emt 0:00:16]} Rb1 {[%emt 0:00:09]} 45. Kc4 {[%emt 0:00:13]} Kg6 {[%emt 0:03:59]} 46. Rd2 {[%emt 0:03:37]} g4 {[%emt 0:00:34]} 47. Rd6+ {[%emt 0:03:29]} Kf5 {[%emt 0:01:42]} 48. Rb6 {[%emt 0:00:11]} Rc1+ {[%emt 0:00:27]} 49. Kb3 {[%emt 0:04:13]} Rb1+ {[%emt 0:00:13]} 50. Kc3 $1 {[%emt 0:00:12]} Rc1+ {[%emt 0:00:19]} 51. Kd2 $2 {[%emt 0:00:49]} (51. Kd3 $18) 51... Rh1 $14 {[%emt 0:00:15]} 52. Rxb7 {[%emt 0:00:12]} Rxh2+ {[%emt 0:00:06]} 53. Ke3 {[%emt 0:00:14] Hoping for b5.} Rb2 $2 {[%emt 0:04:03]} (53... Rh3+ $1 $14 54. Kd4 g3) 54. Kd3 $2 {[%emt 0:07:21]} (54. b5 $1 $18 {[%cal Rb5a6] is the precise move to win.} axb5 55. a6) 54... g3 $2 {[%emt 0:06:36][%mdl 8192] [#]} (54... Rb1 $16) 55. c6 $1 $18 {[%emt 0:00:06] White threatens c7 and mate.} ({Less strong is} 55. Rg7 Rxb4 56. c6 Rb1 $11) 55... Rb1 {[%emt 0:10:21]} 56. Rg7 {[%emt 0:00:09]} Rc1 {[%emt 0:04:13]} 57. Rxg3 {[%emt 0:00:09] Black must now prevent Re3.} Rxc6 {[%emt 0:00:04] [#]} 58. Re3 $1 {[%emt 0:00:08]} Kf6 {[%emt 0:01:00]} 59. Kd4 {[%emt 0:00:28] White wants to mate with Kd5.} Kf7 {[%emt 0:02:03]} 60. Kd5 {[%emt 0:01:36]} (60. Re5 $142 Rc8 61. Rh5) 60... Rh6 {[%emt 0:00:08]} 61. Re5 {[%emt 0:00:37]} Rg6 {[%emt 0:00:30]} 62. Kc5 {[%emt 0:00:20]} Rh6 {[%emt 0:00:54]} 63. b5 {[%emt 0:01:02] Threatening mate with b6.} axb5 {[%emt 0:00:07]} 64. Kxb5 {[%emt 0:00:04] White mates.} Rh1 {[%emt 0:01:30]} 65. a6 {[%emt 0:00:16]} Kf6 {[%emt 0:00:54]} 66. Re4 {[%emt 0:00:11]} Kf5 {[%emt 0:00:11]} 67. Ra4 {[%emt 0:00:43] Weighted Error Value: White=0.21 (precise) /Black=0.47} 1-0